fUSD/lending_fUSD_20260614
["ID","MTS","AMOUNT","RATE_DAILY","PERIOD"]
[425012781,1781416233000,-500.0,0.00027945,8]
[425012782,1781416233000,-834.16,0.00027945,8]
[425012784,1781416233000,-1509.36,0.00027945,8]
[425012783,1781416233000,-1007.33,0.00027945,8]
[425012770,1781416233000,-527.47387551,0.00027945,8]
[425012817,1781416233000,-500.0,0.00027945,8]
[425012815,1781416233000,-1159.37,0.00027945,8]
[425012860,1781416233000,-500.0,0.00027945,8]
[425012850,1781416233000,-1774.5,0.00027945,8]
[425012847,1781416233000,-500.0,0.00027945,8]
[425012851,1781416233000,-500.0,0.00027945,8]
[425012849,1781416233000,-669.87,0.00027945,8]
[425012852,1781416233000,-500.0,0.00027945,8]
[425012854,1781416233000,-996.43,0.00027945,8]
[425012855,1781416233000,-500.0,0.00027945,8]
[425012856,1781416233000,-500.0,0.00027945,8]
[425012857,1781416233000,-575.74,0.00027945,8]
[425012858,1781416233000,-562.99,0.00027945,8]
[425012859,1781416233000,-1237.94,0.00027945,8]
[425012862,1781416233000,-500.0,0.00027945,8]
[425012848,1781416233000,-500.0,0.00027945,8]
[425012861,1781416233000,-1566.12,0.00027945,8]
[425012863,1781416233000,-500.0,0.00027945,8]
[425012866,1781416233000,-797.81,0.00027945,8]
[425012868,1781416233000,-500.0,0.00027945,8]
[425012865,1781416233000,-752.7,0.00027945,8]
[425012869,1781416233000,-509.16129278,0.00027945,8]
[425012867,1781416233000,-500.0,0.00027945,8]
[425012871,1781416233000,-500.0,0.00027945,8]
[425012873,1781416233000,-500.0,0.00027945,8]
[425012870,1781416233000,-500.0,0.00027945,8]
[425012872,1781416233000,-1610.59,0.00027945,8]
[425012874,1781416233000,-500.0,0.00027945,8]
[425012816,1781416233000,-824.8,0.00027945,8]
[425012864,1781416233000,-1460.01,0.00027945,8]
[425012844,1781416233000,-2610.35,0.00027945,8]
[425012853,1781416233000,-500.0,0.00027945,8]
[425012843,1781416233000,-611.27,0.00027945,8]
[425012821,1781416233000,-500.0,0.00027945,8]
[425012820,1781416233000,-500.0,0.00027945,8]
[425012818,1781416233000,-500.0,0.00027945,8]
[425012822,1781416233000,-3181.72,0.00027945,8]
[425012819,1781416233000,-151.75839534,0.00027945,8]
[425012823,1781416233000,-3445.43,0.00027945,8]
[425012824,1781416233000,-500.0,0.00027945,8]
[425012827,1781416233000,-500.0,0.00027945,8]
[425012845,1781416233000,-1061.11,0.00027945,8]
[425012825,1781416233000,-500.0,0.00027945,8]
[425012828,1781416233000,-995.14,0.00027945,8]
[425012835,1781416233000,-500.0,0.00027945,8]
[425012832,1781416233000,-500.0,0.00027945,8]
[425012830,1781416233000,-500.0,0.00027945,8]
[425012826,1781416233000,-500.0,0.00027945,8]
[425012846,1781416233000,-500.0,0.00027945,8]
[425012831,1781416233000,-500.0,0.00027945,8]
[425012833,1781416233000,-626.28,0.00027945,8]
[425012829,1781416233000,-800.3,0.00027945,8]
[425012837,1781416233000,-500.0,0.00027945,8]
[425012836,1781416233000,-2163.19,0.00027945,8]
[425012838,1781416233000,-773.17,0.00027945,8]
[425012839,1781416233000,-500.0,0.00027945,8]
[425012840,1781416233000,-599.34,0.00027945,8]
[425012842,1781416233000,-1329.08,0.00027945,8]
[425012841,1781416233000,-500.0,0.00027945,8]
[425012834,1781416233000,-500.0,0.00027945,8]
[425012912,1781416234000,-500.0,0.00027945,8]
[425012916,1781416234000,-500.0,0.00027945,8]
[425012914,1781416234000,-500.0,0.00027945,8]
[425012917,1781416234000,-500.0,0.00027945,8]
[425012911,1781416234000,-508.09,0.00027945,8]
[425012903,1781416234000,-2372.27,0.00027945,8]
[425012915,1781416234000,-1470.97,0.00027945,8]
[425012909,1781416234000,-840.44,0.00027945,8]
[425012910,1781416234000,-500.0,0.00027945,8]
[425012905,1781416234000,-596.92,0.00027945,8]
[425012919,1781416234000,-500.0,0.00027945,8]
[425012913,1781416234000,-500.0,0.00027945,8]
[425012920,1781416234000,-710.8,0.00027945,8]
[425012933,1781416234000,-500.0,0.00027945,8]
[425012921,1781416234000,-500.0,0.00027945,8]
[425012923,1781416234000,-500.0,0.00027945,8]
[425012922,1781416234000,-500.0,0.00027945,8]
[425012928,1781416234000,-1023.92,0.00027945,8]
[425012924,1781416234000,-1067.55,0.00027945,8]
[425012926,1781416234000,-500.0,0.00027945,8]
[425012927,1781416234000,-566.63,0.00027945,8]
[425012925,1781416234000,-500.0,0.00027945,8]
[425012930,1781416234000,-500.0,0.00027945,8]
[425012929,1781416234000,-500.0,0.00027945,8]
[425012931,1781416234000,-1188.61,0.00027945,8]
[425012932,1781416234000,-527.68637291,0.00027945,8]
[425012907,1781416234000,-500.0,0.00027945,8]
[425012918,1781416234000,-451.37532362,0.00027945,8]
[425012906,1781416234000,-3430.6,0.00027945,8]
[425012876,1781416234000,-524.19,0.00027945,8]
[425012904,1781416234000,-500.0,0.00027945,8]
[425012875,1781416234000,-1356.73,0.00027945,8]
[425012877,1781416234000,-1378.62,0.00027945,8]
[425012879,1781416234000,-1411.59,0.00027945,8]
[425012880,1781416234000,-1252.66,0.00027945,8]
[425012878,1781416234000,-620.19,0.00027945,8]
[425012882,1781416234000,-535.34,0.00027945,8]
[425012881,1781416234000,-500.0,0.00027945,8]
[425012883,1781416234000,-500.0,0.00027945,8]
[425012885,1781416234000,-816.74,0.00027945,8]
[425012884,1781416234000,-500.0,0.00027945,8]
[425012887,1781416234000,-502.16,0.00027945,8]
[425012886,1781416234000,-1312.02,0.00027945,8]
[425012888,1781416234000,-592.79,0.00027945,8]
[425012891,1781416234000,-500.0,0.00027945,8]
[425012890,1781416234000,-1881.99,0.00027945,8]
[425012889,1781416234000,-500.0,0.00027945,8]
[425012893,1781416234000,-500.0,0.00027945,8]
[425012892,1781416234000,-500.0,0.00027945,8]
[425012896,1781416234000,-2119.45,0.00027945,8]
[425012895,1781416234000,-500.0,0.00027945,8]
[425012894,1781416234000,-500.0,0.00027945,8]
[425012898,1781416234000,-500.0,0.00027945,8]
[425012901,1781416234000,-500.0,0.00027945,8]
[425012897,1781416234000,-645.33,0.00027945,8]
[425012899,1781416234000,-922.35,0.00027945,8]
[425012902,1781416234000,-545.16,0.00027945,8]
[425012900,1781416234000,-500.0,0.00027945,8]
[425012908,1781416234000,-431.45538798,0.00027945,8]
[425012934,1781416234000,-724.35,0.00027945,8]
[425012993,1781416234000,-1736.16,0.00027945,8]
[425012935,1781416234000,-500.0,0.00027945,8]
[425012969,1781416234000,-5454.3,0.00027945,8]
[425012968,1781416234000,-500.0,0.00027945,8]
[425012970,1781416234000,-500.0,0.00027945,8]
[425012971,1781416234000,-500.0,0.00027945,8]
[425012973,1781416234000,-648.05,0.00027945,8]
[425012972,1781416234000,-1526.17,0.00027945,8]
[425012974,1781416234000,-1236.56,0.00027945,8]
[425012976,1781416234000,-867.36,0.00027945,8]
[425012977,1781416234000,-500.0,0.00027945,8]
[425012975,1781416234000,-663.4,0.00027945,8]
[425012978,1781416234000,-500.0,0.00027945,8]
[425012979,1781416234000,-500.0,0.00027945,8]
[425012981,1781416234000,-500.0,0.00027945,8]
[425012982,1781416234000,-500.0,0.00027945,8]
[425012983,1781416234000,-2119.65,0.00027945,8]
[425012985,1781416234000,-2205.29,0.00027945,8]
[425012984,1781416234000,-500.0,0.00027945,8]
[425012986,1781416234000,-500.0,0.00027945,8]
[425012988,1781416234000,-500.0,0.00027945,8]
[425012987,1781416234000,-660.0,0.00027945,8]
[425012989,1781416234000,-1631.77,0.00027945,8]
[425012990,1781416234000,-500.0,0.00027945,8]
[425012992,1781416234000,-500.0,0.00027945,8]
[425012991,1781416234000,-500.0,0.00027945,8]
[425012936,1781416234000,-500.0,0.00027945,8]
[425012995,1781416234000,-845.76,0.00027945,8]
[425012994,1781416234000,-500.0,0.00027945,8]
[425012967,1781416234000,-2302.95,0.00027945,8]
[425012963,1781416234000,-851.46,0.00027945,8]
[425012980,1781416234000,-500.0,0.00027945,8]
[425012964,1781416234000,-500.0,0.00027945,8]
[425012937,1781416234000,-568.13,0.00027945,8]
[425012966,1781416234000,-500.0,0.00027945,8]
[425012941,1781416234000,-500.0,0.00027945,8]
[425012938,1781416234000,-1423.51,0.00027945,8]
[425012939,1781416234000,-528.07,0.00027945,8]
[425012940,1781416234000,-500.0,0.00027945,8]
[425012944,1781416234000,-1591.01,0.00027945,8]
[425012943,1781416234000,-1304.3,0.00027945,8]
[425012945,1781416234000,-500.0,0.00027945,8]
[425012946,1781416234000,-541.64,0.00027945,8]
[425012947,1781416234000,-500.0,0.00027945,8]
[425012949,1781416234000,-500.0,0.00027945,8]
[425012948,1781416234000,-500.0,0.00027945,8]
[425012952,1781416234000,-627.75207038,0.00027945,8]
[425012942,1781416234000,-500.0,0.00027945,8]
[425012954,1781416234000,-500.0,0.00027945,8]
[425012953,1781416234000,-504.92,0.00027945,8]
[425012962,1781416234000,-824.89,0.00027945,8]
[425012961,1781416234000,-1295.99,0.00027945,8]
[425012960,1781416234000,-500.0,0.00027945,8]
[425012958,1781416234000,-768.14,0.00027945,8]
[425012959,1781416234000,-500.0,0.00027945,8]
[425012956,1781416234000,-500.0,0.00027945,8]
[425012951,1781416234000,-869.29,0.00027945,8]
[425012950,1781416234000,-500.0,0.00027945,8]
[425012955,1781416234000,-500.0,0.00027945,8]
[425012957,1781416234000,-697.1,0.00027945,8]
[425012965,1781416234000,-500.0,0.00027945,8]
[425013032,1781416235000,-1201.05,0.00027945,8]
[425013031,1781416235000,-524.11,0.00027945,8]
[425013033,1781416235000,-595.66,0.00027945,8]
[425013035,1781416235000,-1058.56,0.00027945,8]
[425013027,1781416235000,-500.0,0.00027945,8]
[425013028,1781416235000,-1091.01,0.00027945,8]
[425013029,1781416235000,-500.0,0.00027945,8]
[425013026,1781416235000,-500.0,0.00027945,8]
[425013034,1781416235000,-811.39,0.00027945,8]
[425013025,1781416235000,-500.0,0.00027945,8]
[425013030,1781416235000,-500.0,0.00027945,8]
[425013037,1781416235000,-500.0,0.00027945,8]
[425013044,1781416235000,-500.0,0.00027945,8]
[425013036,1781416235000,-566.83,0.00027945,8]
[425013038,1781416235000,-500.0,0.00027945,8]
[425013041,1781416235000,-500.0,0.00027945,8]
[425013040,1781416235000,-500.0,0.00027945,8]
[425013042,1781416235000,-2165.46,0.00027945,8]
[425013043,1781416235000,-500.0,0.00027945,8]
[425013046,1781416235000,-500.0,0.00027945,8]
[425013045,1781416235000,-787.41,0.00027945,8]
[425013049,1781416235000,-500.0,0.00027945,8]
[425013048,1781416235000,-556.33,0.00027945,8]
[425013047,1781416235000,-509.58,0.00027945,8]
[425013024,1781416235000,-500.0,0.00027945,8]
[425013039,1781416235000,-1131.84,0.00027945,8]
[425013023,1781416235000,-500.0,0.00027945,8]
[425013051,1781416235000,-643.87,0.00027945,8]
[425013021,1781416235000,-509.28,0.00027945,8]
[425012996,1781416235000,-1599.02,0.00027945,8]
[425012998,1781416235000,-500.0,0.00027945,8]
[425012997,1781416235000,-1902.0,0.00027945,8]
[425013000,1781416235000,-500.0,0.00027945,8]
[425013001,1781416235000,-500.0,0.00027945,8]
[425013004,1781416235000,-500.0,0.00027945,8]
[425013002,1781416235000,-1662.26,0.00027945,8]
[425013003,1781416235000,-500.0,0.00027945,8]
[425012999,1781416235000,-500.0,0.00027945,8]
[425013006,1781416235000,-500.0,0.00027945,8]
[425013005,1781416235000,-1387.47,0.00027945,8]
[425013007,1781416235000,-9318.37,0.00027945,8]
[425013009,1781416235000,-2657.03,0.00027945,8]
[425013008,1781416235000,-500.0,0.00027945,8]
[425013010,1781416235000,-6854.6,0.00027945,8]
[425013012,1781416235000,-500.0,0.00027945,8]
[425013011,1781416235000,-500.0,0.00027945,8]
[425013013,1781416235000,-882.04,0.00027945,8]
[425013014,1781416235000,-500.0,0.00027945,8]
[425013016,1781416235000,-500.0,0.00027945,8]
[425013015,1781416235000,-500.0,0.00027945,8]
[425013017,1781416235000,-626.27,0.00027945,8]
[425013020,1781416235000,-1056.98,0.00027945,8]
[425013018,1781416235000,-620.22,0.00027945,8]
[425013019,1781416235000,-633.46,0.00027945,8]
[425013022,1781416235000,-500.0,0.00027945,8]
[425013050,1781416235000,-1561.3,0.00027945,8]
[425013089,1781416235000,-500.0,0.00027945,8]
[425013052,1781416235000,-1371.78,0.00027945,8]
[425013082,1781416235000,-500.0,0.00027945,8]
[425013085,1781416235000,-1133.72,0.00027945,8]
[425013084,1781416235000,-500.0,0.00027945,8]
[425013086,1781416235000,-648.1,0.00027945,8]
[425013087,1781416235000,-674.46,0.00027945,8]
[425013088,1781416235000,-850.13,0.00027945,8]
[425013091,1781416235000,-500.0,0.00027945,8]
[425013090,1781416235000,-1004.12,0.00027945,8]
[425013092,1781416235000,-500.0,0.00027945,8]
[425013094,1781416235000,-573.93197754,0.00027945,8]
[425013093,1781416235000,-500.0,0.00027945,8]
[425013096,1781416235000,-774.42,0.00027945,8]
[425013095,1781416235000,-500.0,0.00027945,8]
[425013098,1781416235000,-1061.75,0.00027945,8]
[425013100,1781416235000,-8085.8,0.00027945,8]
[425013099,1781416235000,-578.37,0.00027945,8]
[425013101,1781416235000,-516.79,0.00027945,8]
[425013102,1781416235000,-500.0,0.00027945,8]
[425013105,1781416235000,-500.0,0.00027945,8]
[425013103,1781416235000,-500.0,0.00027945,8]
[425013104,1781416235000,-500.0,0.00027945,8]
[425013107,1781416235000,-4916.71,0.00027945,8]
[425013108,1781416235000,-500.0,0.00027945,8]
[425013106,1781416235000,-1467.58,0.00027945,8]
[425013053,1781416235000,-1973.29,0.00027945,8]
[425013081,1781416235000,-500.0,0.00027945,8]
[425013080,1781416235000,-730.77,0.00027945,8]
[425013097,1781416235000,-1139.19,0.00027945,8]
[425013079,1781416235000,-500.0,0.00027945,8]
[425013078,1781416235000,-621.52,0.00027945,8]
[425013054,1781416235000,-500.0,0.00027945,8]
[425013056,1781416235000,-500.0,0.00027945,8]
[425013055,1781416235000,-500.0,0.00027945,8]
[425013057,1781416235000,-992.53,0.00027945,8]
[425013058,1781416235000,-500.0,0.00027945,8]
[425013060,1781416235000,-500.0,0.00027945,8]
[425013061,1781416235000,-3257.38,0.00027945,8]
[425013064,1781416235000,-592.15,0.00027945,8]
[425013065,1781416235000,-1310.78,0.00027945,8]
[425013063,1781416235000,-2799.41,0.00027945,8]
[425013062,1781416235000,-1287.79,0.00027945,8]
[425013059,1781416235000,-500.0,0.00027945,8]
[425013075,1781416235000,-527.3,0.00027945,8]
[425013067,1781416235000,-815.14,0.00027945,8]
[425013069,1781416235000,-1116.71,0.00027945,8]
[425013068,1781416235000,-1754.68,0.00027945,8]
[425013070,1781416235000,-544.77,0.00027945,8]
[425013071,1781416235000,-500.0,0.00027945,8]
[425013073,1781416235000,-824.3,0.00027945,8]
[425013072,1781416235000,-569.25,0.00027945,8]
[425013074,1781416235000,-500.0,0.00027945,8]
[425013076,1781416235000,-500.0,0.00027945,8]
[425013077,1781416235000,-518.86,0.00027945,8]
[425013066,1781416235000,-655.79,0.00027945,8]
[425013083,1781416235000,-924.83,0.00027945,8]
[425013129,1781416236000,-1003.72,0.00027945,8]
[425013124,1781416236000,-984.25,0.00027945,8]
[425013139,1781416236000,-2614.38,0.00027945,8]
[425013126,1781416236000,-500.0,0.00027945,8]
[425013128,1781416236000,-500.0,0.00027945,8]
[425013130,1781416236000,-500.0,0.00027945,8]
[425013134,1781416236000,-500.0,0.00027945,8]
[425013133,1781416236000,-500.0,0.00027945,8]
[425013135,1781416236000,-612.61,0.00027945,8]
[425013137,1781416236000,-528.83,0.00027945,8]
[425013136,1781416236000,-2257.06,0.00027945,8]
[425013132,1781416236000,-2361.19,0.00027945,8]
[425013127,1781416236000,-2160.35,0.00027945,8]
[425013131,1781416236000,-500.0,0.00027945,8]
[425013125,1781416236000,-500.0,0.00027945,8]
[425013112,1781416236000,-500.0,0.00027945,8]
[425013120,1781416236000,-504.09,0.00027945,8]
[425013121,1781416236000,-500.0,0.00027945,8]
[425013118,1781416236000,-1241.94,0.00027945,8]
[425013122,1781416236000,-303.77495911,0.00027945,8]
[425013119,1781416236000,-7344.99,0.00027945,8]
[425013117,1781416236000,-872.27,0.00027945,8]
[425013114,1781416236000,-575.72,0.00027945,8]
[425013115,1781416236000,-500.0,0.00027945,8]
[425013113,1781416236000,-500.0,0.00027945,8]
[425013116,1781416236000,-500.0,0.00027945,8]
[425013111,1781416236000,-500.0,0.00027945,8]
[425013110,1781416236000,-929.75,0.00027945,8]
[425013109,1781416236000,-1815.68,0.00027945,8]
[425013138,1781416236000,-1503.8,0.00027945,8]
[425013123,1781416236000,-571.46,0.00027945,8]
[425013143,1781416236000,-2256.66,0.00027945,8]
[425013155,1781416236000,-1839.7,0.00027945,8]
[425013140,1781416236000,-500.0,0.00027945,8]
[425013160,1781416236000,-500.0,0.00027945,8]
[425013163,1781416236000,-892.62,0.00027945,8]
[425013164,1781416236000,-500.0,0.00027945,8]
[425013162,1781416236000,-1091.59,0.00027945,8]
[425013166,1781416236000,-3355.96,0.00027945,8]
[425013167,1781416236000,-2155.6,0.00027945,8]
[425013161,1781416236000,-612.48,0.00027945,8]
[425013165,1781416236000,-1722.32,0.00027945,8]
[425013168,1781416236000,-523.47293109,0.00027945,8]
[425013172,1781416236000,-1317.99,0.00027945,8]
[425013142,1781416236000,-2098.88,0.00027945,8]
[425013170,1781416236000,-1797.01,0.00027945,8]
[425013174,1781416236000,-1449.25674612,0.00027945,8]
[425013173,1781416236000,-884.1,0.00027945,8]
[425013169,1781416236000,-631.02,0.00027945,8]
[425013159,1781416236000,-19214.29,0.00027945,8]
[425013171,1781416236000,-2696.04,0.00027945,8]
[425013157,1781416236000,-500.0,0.00027945,8]
[425013141,1781416236000,-2554.65,0.00027945,8]
[425013158,1781416236000,-500.0,0.00027945,8]
[425013145,1781416236000,-4552.31,0.00027945,8]
[425013146,1781416236000,-1758.65,0.00027945,8]
[425013150,1781416236000,-622.72,0.00027945,8]
[425013148,1781416236000,-2921.71,0.00027945,8]
[425013149,1781416236000,-740.84,0.00027945,8]
[425013144,1781416236000,-500.0,0.00027945,8]
[425013152,1781416236000,-500.0,0.00027945,8]
[425013156,1781416236000,-500.0,0.00027945,8]
[425013153,1781416236000,-500.0,0.00027945,8]
[425013151,1781416236000,-500.0,0.00027945,8]
[425013154,1781416236000,-500.0,0.00027945,8]
[425013147,1781416236000,-500.0,0.00027945,8]
[425013191,1781416237000,-500.0,0.00027945,8]
[425013193,1781416237000,-1022.94,0.00027945,8]
[425013200,1781416237000,-597.21363515,0.00027945,8]
[425013196,1781416237000,-565.76,0.00027945,8]
[425013195,1781416237000,-500.0,0.00027945,8]
[425013199,1781416237000,-500.0,0.00027945,8]
[425013198,1781416237000,-1089.95,0.00027945,8]
[425013197,1781416237000,-500.0,0.00027945,8]
[425013190,1781416237000,-691.55,0.00027945,8]
[425013194,1781416237000,-500.0,0.00027945,8]
[425013189,1781416237000,-1077.21,0.00027945,8]
[425013183,1781416237000,-960.98,0.00027945,8]
[425013188,1781416237000,-500.0,0.00027945,8]
[425013184,1781416237000,-500.0,0.00027945,8]
[425013186,1781416237000,-500.0,0.00027945,8]
[425013187,1781416237000,-3565.89,0.00027945,8]
[425013185,1781416237000,-500.0,0.00027945,8]
[425013182,1781416237000,-500.0,0.00027945,8]
[425013181,1781416237000,-1508.58,0.00027945,8]
[425013180,1781416237000,-500.0,0.00027945,8]
[425013178,1781416237000,-868.68,0.00027945,8]
[425013179,1781416237000,-500.0,0.00027945,8]
[425013177,1781416237000,-3328.19325388,0.00027945,8]
[425013201,1781416237000,-329.31550422,0.00027945,8]
[425013192,1781416237000,-892.97,0.00027945,8]
[425013202,1781416237000,-170.68449578,0.00027945,8]
[425013213,1781416237000,-907.8,0.00027945,8]
[425013204,1781416237000,-500.0,0.00027945,8]
[425013203,1781416237000,-500.0,0.00027945,8]
[425013229,1781416237000,-500.0,0.00027945,8]
[425013228,1781416237000,-883.05,0.00027945,8]
[425013226,1781416237000,-1138.72,0.00027945,8]
[425013227,1781416237000,-259.13376513,0.00027945,8]
[425013224,1781416237000,-500.0,0.00027945,8]
[425013225,1781416237000,-500.0,0.00027945,8]
[425013222,1781416237000,-4683.5,0.00027945,8]
[425013220,1781416237000,-2462.41,0.00027945,8]
[425013216,1781416237000,-1029.1,0.00027945,8]
[425013221,1781416237000,-667.3,0.00027945,8]
[425013219,1781416237000,-500.0,0.00027945,8]
[425013223,1781416237000,-500.0,0.00027945,8]
[425013215,1781416237000,-536.67947697,0.00027945,2]
[425013217,1781416237000,-500.0,0.00027945,8]
[425013206,1781416237000,-500.0,0.00027945,8]
[425013208,1781416237000,-500.0,0.00027945,8]
[425013205,1781416237000,-703.26,0.00027945,8]
[425013207,1781416237000,-500.0,0.00027945,8]
[425013209,1781416237000,-1416.97,0.00027945,8]
[425013212,1781416237000,-592.80188961,0.00027945,8]
[425013214,1781416237000,-500.0,0.00027945,8]
[425013211,1781416237000,-183.24362153,0.00027945,8]
[425013218,1781416237000,-866.43,0.00027945,8]
[425013210,1781416237000,-500.0,0.00027945,8]
[425013248,1781416238000,-500.0,0.00027945,2]
[425013239,1781416238000,-500.0,0.00027945,2]
[425013246,1781416238000,-1070.85,0.00027945,8]
[425013245,1781416238000,-500.0,0.00027945,8]
[425013244,1781416238000,-500.0,0.00027945,8]
[425013247,1781416238000,-500.0,0.00027945,8]
[425013243,1781416238000,-500.0,0.00027945,8]
[425013242,1781416238000,-560.93,0.00027945,8]
[425013240,1781416238000,-500.0,0.00027945,8]
[425013233,1781416238000,-1600.09609559,0.00027945,8]
[425013238,1781416238000,-673.61,0.00027945,8]
[425013237,1781416238000,-880.56,0.00027945,8]
[425013236,1781416238000,-500.0,0.00027945,8]
[425013235,1781416238000,-500.0,0.00027945,8]
[425013230,1781416238000,-796.66,0.00027945,8]
[425013232,1781416238000,-500.0,0.00027945,8]
[425013231,1781416238000,-853.29,0.00027945,8]
[425013252,1781416238000,-2172.3,0.00027945,8]
[425013241,1781416238000,-1663.65,0.00027945,8]
[425013251,1781416238000,-1287.86,0.00027945,8]
[425013234,1781416238000,-305.33390441,0.00027945,8]
[425013249,1781416238000,-500.0,0.00027945,8]
[425013272,1781416238000,-63.27285442,0.00027935,10]
[425013271,1781416238000,-172.68,0.0002755,30]
[425013270,1781416238000,-153.47,0.0002755,30]
[425013269,1781416238000,-740.01793856,0.00027945,2]
[425013268,1781416238000,-864.32953375,0.00027945,2]
[425013266,1781416238000,-500.0,0.00027945,8]
[425013265,1781416238000,-500.0,0.00027945,8]
[425013264,1781416238000,-500.0,0.00027945,8]
[425013260,1781416238000,-690.07,0.00027945,8]
[425013267,1781416238000,-91.31175796,0.00027945,2]
[425013262,1781416238000,-3448.67697406,0.00027945,8]
[425013253,1781416238000,-500.0,0.00027945,8]
[425013261,1781416238000,-638.97,0.00027945,8]
[425013254,1781416238000,-500.0,0.00027945,8]
[425013258,1781416238000,-637.78,0.00027945,8]
[425013257,1781416238000,-1152.52,0.00027945,8]
[425013255,1781416238000,-500.0,0.00027945,8]
[425013259,1781416238000,-572.46,0.00027945,8]
[425013263,1781416238000,-1171.34302594,0.00027945,8]
[425013256,1781416238000,-1028.97,0.00027945,8]
[425013250,1781416238000,-1339.46,0.00027945,8]
[425013277,1781416240000,-122.64076973,0.00027945,2]
[425013278,1781416240000,-500.0,0.00027945,8]
[425013275,1781416240000,-316.49714558,0.00027935,10]
[425013276,1781416240000,-427.0,0.00027944,10]
[425013279,1781416240000,-256.25830977,0.00027945,8]
[425013288,1781416242000,-243.74169023,0.00027945,8]
[425013289,1781416242000,-180.29140155,0.00027945,8]
[425013290,1781416243000,-473.42,0.00027945,8]
[425013291,1781416243000,-546.4750161,0.00027945,8]
[425013297,1781416245000,-402.07507059,0.00027945,8]
[425013296,1781416245000,-500.0,0.00027945,8]
[425013294,1781416245000,-194.53360836,0.00026945,2]
[425013295,1781416245000,-778.50358235,0.00027945,8]
[425013293,1781416245000,-201.4377387,0.00026945,2]
[425013328,1781416246000,-992.72,0.00027945,8]
[425013327,1781416246000,-695.51,0.00027945,8]
[425013323,1781416246000,-800.23680916,0.00027945,8]
[425013325,1781416246000,-426.70091308,0.00027945,8]
[425013326,1781416246000,-500.0,0.00027945,8]
[425013330,1781416246000,-502.17,0.00027945,8]
[425013329,1781416246000,-500.0,0.00027945,8]
[425013331,1781416246000,-574.62,0.00027945,8]
[425013332,1781416246000,-500.0,0.00027945,8]
[425013338,1781416246000,-3097.47,0.00027945,8]
[425013339,1781416246000,-500.2,0.00027945,8]
[425013337,1781416246000,-541.36,0.00027945,8]
[425013343,1781416246000,-877.33,0.00027945,8]
[425013334,1781416246000,-1643.27,0.00027945,8]
[425013324,1781416246000,-73.29908692,0.00027945,8]
[425013299,1781416246000,-1434.49,0.00027945,8]
[425013335,1781416246000,-706.89,0.00027945,8]
[425013341,1781416246000,-595.59,0.00027945,8]
[425013340,1781416246000,-387.77368496,0.00027945,8]
[425013342,1781416246000,-854.75,0.00027945,8]
[425013336,1781416246000,-500.0,0.00027945,8]
[425013322,1781416246000,-276.19319084,0.00027945,8]
[425013305,1781416246000,-1161.38,0.00027945,8]
[425013320,1781416246000,-146.68811731,0.00027945,8]
[425013298,1781416246000,-97.92492941,0.00027945,8]